Workbook

Sheet EXAMPLE
A1: PERIODIC REVIEW STOCHASTIC INVENTORY MODEL - POISSON DEMAND
A3: Bob Agnew, raagnew1@gmail.com, www.raagnew.com
A5: Reference
A6: R. A. Agnew, Inequalities with Application in Retail Inventory Analysis, Journal of Applied Probability, Vol 12, pp 852-858, 1975.
A7: Available for download at website above.
A9: Inputs & Outputs
A10: Time Units per Year | E10: 52 | F10: (assumed weeks)
A11: Inventory Carrying Cost Rate | E11: 30% | F11: (allows for annual cost of capital, spoilage, and obsolescence)
B14: Mean | C14: Delivery | E14: Expected | F14: $ Unit | I14: Marginal | L14: Average | M14: Marginal | N14: Average | O14: Average | Q14: Average
B15: Demand | C15: Lead | D15: Review | E15: Order | F15: Selling | G15: $ Unit | H15: Markup | I15: Turnover | J15: Optimal | K15: Service | L15: Unit | M15: Turnover | N15: Annual $ | O15: Annual $ | P15: Average $ | Q15: Turnover
A16: Item | B16: Rate | C16: Time | D16: Period | E16: Quantity | F16: Price | G16: Cost | H16: Rate | I16: Minimum | J16: OUTL | K16: Level | L16: Inventory | M16: Rate | N16: Sales | O16: Throughput | P16: Inventory | Q16: Rate
A17: 1 | B17: 50 | C17: 3 | D17: 0.5 | E17: =B17*D17 -> 25 | F17: $1.00 | G17: $0.85 | H17: =F17/G17-1 -> 17.65% | I17: =$E$11/H17 -> 1.70 | J17: =POISSON_OUTL($E$10,B17,C17,D17,I17) -> 204 | K17: =POISSON_SVL(J17,B17,C17,D17) -> 99.68% | L17: =POISSON_AVI(J17,B17,C17,D17) -> 41.51 | M17: =$E$10*B17*(K17-POISSON_SVL(J17-1,B17,C17,D17))/K17 -> 1.81 | N17: =F17*$E$10*$B17*$K17 -> $2,591.75 | O17: $2,202.99 | P17: =G17*L17 -> $35.29 | Q17: =O17/P17 -> 62.43
A18: 2 | B18: 15 | C18: 3 | D18: 0.5 | E18: =B18*D18 -> 7.5 | F18: $3.00 | G18: $2.50 | H18: =F18/G18-1 -> 20.00% | I18: =$E$11/H18 -> 1.50 | J18: 69 | K18: =POISSON_SVL(J18,B18,C18,D18) -> 99.48% | L18: =POISSON_AVI(J18,B18,C18,D18) -> 20.26 | M18: =$E$10*B18*(K18-POISSON_SVL(J18-1,B18,C18,D18))/K18 -> 1.68 | N18: $2,327.82 | O18: $1,939.85 | P18: =G18*L18 -> $50.65 | Q18: 38.30
A19: 3 | B19: 5 | C19: 6 | D19: 1 | E19: =B19*D19 -> 5 | F19: $15.00 | G19: $12.00 | H19: =F19/G19-1 -> 25.00% | I19: =$E$11/H19 -> 1.20 | J19: 47 | K19: =POISSON_SVL(J19,B19,C19,D19) -> 98.80% | L19: =POISSON_AVI(J19,B19,C19,D19) -> 14.52 | M19: =$E$10*B19*(K19-POISSON_SVL(J19-1,B19,C19,D19))/K19 -> 1.46 | N19: $3,853.24 | O19: $3,082.59 | P19: =G19*L19 -> $174.27 | Q19: 17.69
A20: 4 | B20: 1 | C20: 6 | D20: 1 | E20: =B20*D20 -> 1 | F20: $50.00 | G20: $30.00 | H20: =F20/G20-1 -> 66.67% | I20: =$E$11/H20 -> 0.45 | J20: 14 | K20: =POISSON_SVL(J20,B20,C20,D20) -> 99.25% | L20: =POISSON_AVI(J20,B20,C20,D20) -> 7.51 | M20: =$E$10*B20*(K20-POISSON_SVL(J20-1,B20,C20,D20))/K20 -> 0.48 | N20: $2,580.57 | O20: $1,548.34 | P20: =G20*L20 -> $225.15 | Q20: 6.88
A21: 5 | B21: 0.1 | C21: 8 | D21: 2 | E21: =B21*D21 -> 0.2 | F21: $250.00 | G21: $125.00 | H21: =F21/G21-1 -> 100.00% | I21: =$E$11/H21 -> 0.30 | J21: 3 | K21: =POISSON_SVL(J21,B21,C21,D21) -> 93.68% | L21: =POISSON_AVI(J21,B21,C21,D21) -> 2.12 | M21: =$E$10*B21*(K21-POISSON_SVL(J21-1,B21,C21,D21))/K21 -> 0.91 | N21: $1,217.85 | O21: $608.93 | P21: =G21*L21 -> $264.56 | Q21: 2.30
A22: Total | N22: =SUM(N17:N21) -> $12,571.23 | O22: =SUM(O17:O21) -> $9,382.69 | P22: =SUM(P17:P21) -> $749.92 | Q22: 12.51
B24: Inputs
B25: Outputs
A28: OUTL = Order-Up-To-Level
A29: Policy at a review is to order the positive difference between OUTL and Inventory Position (On Hand + On Order), else zero
A30: Demand is assumed to follow a Poisson Process (one-at-a time random, independent demands)
A31: Simple macro functions are POISSON_OUTL, POISSON_SVL, and POISSON_AVI (Click Alt-F11 to view Visual Basic codes)
A32: Review periods can be adjusted to allow for order quantity minimums (by item or across items)
A33: Can encompass a large number of items within Excel
A34: Can be utilized as an assortment planning tool for staple (limited seasonality) items, everything from shock absorbers to underwear in retail or service parts in wholesale
A35: Can be productionalized for inventory management with simple SKU-level demand rate forecasting/smoothing tools
A36: Calculations can be easily reproduced in an open-source analytical language like Python or R
